[Event "Polish Youth 1st League 2022"]
[Site "Lublin"]
[Date "2022.06.28"]
[Round "4.29"]
[White "Mroz, Lena"]
[Black "Barwinska, Ewa"]
[Result "0-1"]
[ECO "B90"]
[WhiteElo "1719"]
[BlackElo "1825"]
[Annotator "NA RC"]
[PlyCount "64"]
[EventDate "2022.06.24"]
[EventType "team-tourn"]
[EventCountry "POL"]
[SourceTitle "playchess.com"]
[Source "ChessBase"]
[SourceQuality "1"]
[TimeControl "40/5400+30:1800+30"]

1. e4 {[%emt 0:00:02]} c5 {[%emt 0:00:08]} 2. Nf3 {[%emt 0:00:10]} d6 {[%emt 0:00:08]} 3. d4 {[%emt 0:00:27]} cxd4 {[%emt 0:00:12]} 4. Nxd4 {[%emt 0:00:06]} Nf6 {[%emt 0:00:11]} 5. Nc3 {[%emt 0:00:12]} a6 {[%emt 0:00:09]} 6. Qf3 {[%emt 0:00:13]} Qb6 {[%emt 0:08:33]} 7. Nb3 {[%emt 0:03:11]} e6 {[%emt 0:02:09]} 8. g4 {[%emt 0:05:13]} Be7 {[%emt 0:06:24]} 9. g5 {[%emt 0:05:28]} Nfd7 {[%emt 0:00:17]} 10. h4 {[%emt 0:11:33]} Nc6 {[%emt 0:06:59]} 11. Be3 {[%emt 0:09:55]} Qc7 {[%emt 0:01:19]} 12. Qg2 {[%emt 0:03:04]} ({Better is} 12. h5 $16) 12... b5 {[%emt 0:06:17]} 13. f4 {[%emt 0:11:30]} b4 {[%emt 0:03:43]} 14. Ne2 {[%emt 0:03:57]} Bb7 {[%emt 0:03:07]} 15. h5 {[%emt 0:11:28]} O-O-O {[%emt 0:14:39]} 16. O-O-O {[%emt 0:07:05]} Nc5 {[%emt 0:06:44]} 17. Ng3 {[%emt 0:06:56]} Kb8 $14 {[%emt 0:05:52]} 18. Kb1 {[%emt 0:02:26]} Na5 {[%emt 0:04:47]} 19. Be2 {[%emt 0:03:27]} Rc8 {[%emt 0:05:41]} 20. Rd2 {[%emt 0:09:09]} Rhd8 {[%emt 0:05:29]} 21. Nxa5 {[%emt 0:01:50]} Qxa5 {[%emt 0:00:12]} 22. Bxc5 {[%emt 0:01:36]} b3 {[%emt 0:04:59]} 23. Rd3 {[%emt 0:01:39]} Qxa2+ {[%emt 0:00:29]} 24. Kc1 {[%emt 0:00:01]} Rxc5 {[%emt 0:00:25]} 25. Bd1 {[%emt 0:01:16]} Rdc8 {[%emt 0:00:58]} 26. Rh2 {[%emt 0:01:00]} bxc2 {[%emt 0:00:45]} 27. Bxc2 {[%emt 0:00:14]} Qa1+ {[%emt 0:00:04]} 28. Kd2 {[%emt 0:00:06]} Rxc2+ {[%emt 0:00:06]} 29. Ke3 {[%emt 0:00:26]} Rxg2 {[%emt 0:00:09]} 30. Rxg2 {[%emt 0:00:02]} d5 {[%emt 0:00:49]} 31. exd5 {[%emt 0:01:27]} Bxd5 {[%emt 0:00:16]} 32. Re2 {[%emt 0:00:49]} Qg1+ {[%emt 0:00:06]} 0-1

[Event "Polish Youth 1st League 2022"]
[Site "Lublin"]
[Date "2022.06.28"]
[Round "4.30"]
[White "Matuszewska, Kinga"]
[Black "Lajdamik, Kinga"]
[Result "0-1"]
[ECO "E16"]
[WhiteElo "1085"]
[BlackElo "1308"]
[Annotator "NA RC"]
[PlyCount "92"]
[EventDate "2022.06.24"]
[EventType "team-tourn"]
[EventCountry "POL"]
[SourceTitle "playchess.com"]
[Source "ChessBase"]
[SourceQuality "1"]
[TimeControl "40/5400+30:1800+30"]

1. d4 {[%emt 0:00:02]} Nf6 {[%emt 0:00:06]} 2. Nf3 {[%emt 0:00:11]} e6 {[%emt 0:00:10]} 3. g3 {[%emt 0:00:06]} b6 {[%emt 0:01:17]} 4. Bg2 {[%emt 0:00:24]} Bb7 {[%emt 0:00:13]} 5. c4 {[%emt 0:00:53]} Bb4+ {[%emt 0:00:51]} 6. Bd2 {[%emt 0:04:51]} Qe7 {[%emt 0:04:16]} 7. Nc3 {[%emt 0:08:48]} O-O {[%emt 0:03:12]} 8. O-O {[%emt 0:00:17]} d6 {[%emt 0:01:31]} 9. a3 {[%emt 0:07:55]} Bxc3 {[%emt 0:00:11]} 10. Bxc3 {[%emt 0:00:08]} Nbd7 {[%emt 0:01:22]} 11. h3 {[%emt 0:10:04]} Ne4 {[%emt 0:06:51]} 12. Qc2 {[%emt 0:05:46]} f5 {[%emt 0:02:44]} 13. Rfd1 {[%emt 0:06:55]} Rab8 {[%emt 0:04:09]} 14. Nd2 {[%emt 0:03:06]} Nxc3 {[%emt 0:01:39]} 15. Qxc3 {[%emt 0:00:51]} Bxg2 {[%emt 0:00:23]} 16. Kxg2 {[%emt 0:00:03]} Qf7 {[%emt 0:05:15]} 17. f4 {[%emt 0:03:52]} Nf6 {[%emt 0:02:29]} 18. Qf3 {[%emt 0:04:33]} Qg6 {[%emt 0:05:06]} 19. b4 {[%emt 0:03:51]} h5 {[%emt 0:02:09]} 20. Kh2 {[%emt 0:04:07]} Rfe8 {[%emt 0:10:59]} 21. Rac1 {[%emt 0:07:40]} e5 {[%emt 0:10:42]} 22. dxe5 {[%emt 0:01:07]} dxe5 {[%emt 0:00:16]} 23. e3 {[%emt 0:00:43]} e4 {[%emt 0:01:01]} 24. Qe2 {[%emt 0:00:49]} c6 {[%emt 0:06:06]} 25. c5 {[%emt 0:02:51]} b5 {[%emt 0:00:27]} 26. Nb3 {[%emt 0:01:25]} Nd5 {[%emt 0:01:05]} 27. Nd4 {[%emt 0:01:43]} Rbd8 {[%emt 0:00:33]} 28. Qa2 {[%emt 0:07:13]} Kh7 {[%emt 0:00:38]} 29. Qb3 {[%emt 0:04:39]} Rd7 {[%emt 0:02:43]} 30. Rd2 {[%emt 0:00:56]} Red8 {[%emt 0:03:46]} 31. Rcd1 {[%emt 0:00:52]} a6 {[%emt 0:02:20]} 32. Kg2 {[%emt 0:02:30]} h4 {[%emt 0:01:17]} 33. g4 {[%emt 0:04:21]} fxg4 {[%emt 0:00:22]} 34. hxg4 Qxg4+ {[%emt 0:00:09]} 35. Kh1 {[%emt 0:00:51]} Qh3+ {[%emt 0:02:48]} 36. Rh2 {[%emt 0:00:55]} Qxe3 {[%emt 0:00:54]} 37. Qxe3 {[%emt 0:00:37]} Nxe3 {[%emt 0:00:08]} 38. Rxh4+ {[%emt 0:00:08]} Kg8 {[%emt 0:00:22]} 39. Re1 {[%emt 0:00:57]} Rxd4 {[%emt 0:00:29]} 40. Rxe3 {[%emt 0:00:00]} Rd1+ {[%emt 0:00:00]} 41. Kg2 {[%emt 0:02:56]} R8d2+ {[%emt 0:01:04]} 42. Kh3 {[%emt 0:02:35]} Rd3 {[%emt 0:00:50]} 43. Rxd3 {[%emt 0:00:28]} exd3 {[%emt 0:00:15]} 44. Kg2 {[%emt 0:01:05]} d2 {[%emt 0:00:14]} 45. Kf2 {[%emt 0:01:27]} Re1 {[%emt 0:00:28]} 46. f5 {[%emt 0:00:57]} d1=Q {[%emt 0:00:10]} 0-1

[Event "Polish Youth 1st League 2022"]
[Site "Lublin"]
[Date "2022.06.29"]
[Round "5.1"]
[White "Jedraszek, Pawel"]
[Black "Madej, Marek"]
[Result "1-0"]
[ECO "E77"]
[WhiteElo "1933"]
[BlackElo "1978"]
[Annotator "TA"]
[PlyCount "81"]
[EventDate "2022.06.24"]
[EventType "team-tourn"]
[EventCountry "POL"]
[SourceTitle "playchess.com"]
[Source "ChessBase"]
[SourceQuality "1"]
[TimeControl "40/5400+30:1800+30"]

{[%evp 23,81,0,0,-27,0,0,133,124,127,129,126,125,125,125,121,116,264,160,170,178,155,156,312,258,260,266,477,461,696,693,689,689,688,681,720,609,770,763,756,734,1633,817,751,625,620,364,347,359,346,320,548,539,1017,1006,1554,1271,29984,29985,29985,29986]} 1. c4 {[%emt 0:00:07]} Nf6 {[%emt 0:00:13]} 2. Nc3 {[%emt 0:00:07]} g6 {[%emt 0:00:24]} 3. e4 {[%emt 0:00:10]} d6 {[%emt 0:00:09]} 4. d4 {[%emt 0:00:05]} Bg7 {[%emt 0:00:05]} 5. f4 {[%emt 0:00:27]} O-O {[%emt 0:02:25]} 6. Nf3 {[%emt 0:00:14]} c5 {[%emt 0:00:07]} 7. d5 {[%emt 0:00:34]} e6 {[%emt 0:00:05]} 8. Be2 {[%emt 0:00:33]} exd5 {[%emt 0:00:04]} 9. cxd5 {[%emt 0:00:15]} Nbd7 {[%emt 0:00:13]} 10. O-O {[%emt 0:01:48]} Re8 {[%emt 0:00:17]} 11. Nd2 {[%emt 0:02:01]} c4 {[%emt 0:02:01]} 12. a4 {[%emt 0:12:04]} Nc5 {[%emt 0:03:46][%cal Rc5e4]} 13. Bf3 {[%emt 0:03:34] A69: Modern Benoni: Four Pawns Attack with 9...Re8.} h5 {[%emt 0:08:25]} 14. h3 {[%emt 0:00:46]} Bh6 {[%emt 0:01:34]} (14... b6 $11) 15. e5 $16 {[%emt 0:07:13] White is clearly better.} dxe5 {[%emt 0:08:18]} 16. fxe5 {[%emt 0:00:03] [#]} Bxd2 $146 {[%emt 0:13:04]} ({Predecessor:} 16... Be3+ 17. Kh1 Ng4 18. Nxc4 Nf2+ 19. Rxf2 Bxf2 20. b4 Qh4 21. bxc5 Bxh3 22. Bg5 Bxg2+ 23. Kxg2 Qxg5+ 24. Kxf2 {1-0 (38) Navarrete Terrasa,S (2007)-Lechado Artigues,P (2166) Palma de Mallorca 2012}) 17. Qxd2 {[%emt 0:10:26]} Rxe5 {[%emt 0:05:50]} 18. Qd4 {[%emt 0:01:25][%csl LRc4,LRc5,LRe5]} Nd3 {[%emt 0:02:39]} 19. a5 {[%emt 0:12:42] Prevents Qb6.} Bf5 {[%emt 0:11:32]} (19... Nd7 $16) 20. Bf4 {[%emt 0:04:16]} Nxf4 {[%emt 0:02:51]} 21. Qxe5 {[%emt 0:00:11]} Nd3 {[%emt 0:00:12]} 22. Qd4 {[%emt 0:00:51] [#] Threatens to win with d6.} Rc8 $2 {[%emt 0:02:37]} (22... Qd6 $16 23. Qxc4 Qe5) 23. Qxa7 {[%emt 0:07:50]} Qd6 {[%emt 0:10:36]} 24. Qd4 {[%emt 0:01:37]} Nxb2 $2 {[%emt 0:01:04]} (24... Qc5 25. Qxc5 Nxc5) 25. Nb5 $1 $18 {[%emt 0:04:02][%csl LRb2,LRd6]} Qb4 {[%emt 0:00:17]} (25... Qc5 $142 26. Qxc5 Rxc5) 26. Qxf6 {[%emt 0:02:19]} Qxb5 {[%emt 0:01:31] [#]} 27. Bxh5 $1 {[%emt 0:01:58][%mdl 512]} Qxd5 {[%emt 0:01:10]} (27... Qd7 28. Bf3) 28. Bf3 {[%emt 0:05:27]} (28. Qxb2 gxh5 29. Qc3 Bd3 $16) 28... Qb5 {[%emt 0:02:14]} 29. Bg4 {[%emt 0:00:55][%cal Rg4f5]} Rc6 {[%emt 0:01:30]} 30. Qd8+ {[%emt 0:00:21]} ({Stronger than} 30. Rxf5 gxf5 31. Qg5+ (31. Qxf5 Qxf5 32. Bxf5 c3 $11) 31... Kf8 32. Bxf5 (32. Qd8+ Kg7 $11) 32... Qe5 $11) 30... Kg7 {[%emt 0:01:20]} 31. Qd4+ {[%emt 0:01:08]} Kg8 {[%emt 0:00:10]} 32. Bxf5 {[%emt 0:00:44]} gxf5 {[%emt 0:00:27]} 33. Qd8+ {[%emt 0:02:57]} Kg7 {[%emt 0:00:17]} 34. Qg5+ {[%emt 0:05:07]} Rg6 {[%emt 0:00:30]} 35. Qxf5 {[%emt 0:00:22]} Qxf5 {[%emt 0:00:14]} 36. Rxf5 {aiming for Raf1. KRR-KRN} Nd3 $2 {[%emt 0:03:42]} (36... Rc6 {is a better defense.} 37. Rg5+ Kf8) 37. Raf1 {[%emt 0:02:52]} c3 {[%emt 0:03:01]} 38. Rxf7+ {[%emt 0:00:39]} Kg8 {[%emt 0:01:09]} 39. Rc7 {[%emt 0:00:17] And now Rd1 would win.} Rc6 {[%emt 0:00:40]} 40. Rxc6 {[%emt 0:00:00]} bxc6 {[%emt 0:00:00]} 41. a6 {[%emt 0:00:17] White took control after the opening.  Weighted Error Value: White=0.36/Black=1.15} 1-0

[Event "Polish Youth 1st League 2022"]
[Site "Lublin"]
[Date "2022.06.29"]
[Round "5.2"]
[White "Nowak, Filip"]
[Black "Klaska, Szymon"]
[Result "0-1"]
[ECO "C42"]
[WhiteElo "1819"]
[BlackElo "1563"]
[Annotator "NA RC"]
[PlyCount "64"]
[EventDate "2022.06.24"]
[EventType "team-tourn"]
[EventCountry "POL"]
[SourceTitle "playchess.com"]
[Source "ChessBase"]
[SourceQuality "1"]
[TimeControl "40/5400+30:1800+30"]

1. e4 {[%emt 0:00:03]} e5 {[%emt 0:00:24]} 2. Nf3 {[%emt 0:00:08]} Nf6 {[%emt 0:00:33]} 3. Nxe5 {[%emt 0:00:22]} d6 {[%emt 0:00:59]} 4. Nf3 {[%emt 0:00:12]} Nxe4 {[%emt 0:00:42]} 5. Nc3 {[%emt 0:00:07]} Nxc3 {[%emt 0:01:29]} 6. dxc3 {[%emt 0:00:07]} Be7 {[%emt 0:00:40]} 7. Be3 {[%emt 0:00:12]} Nc6 {[%emt 0:01:08]} 8. Qd2 {[%emt 0:00:44]} Bf5 {[%emt 0:02:17]} 9. O-O-O {[%emt 0:00:19]} Qd7 {[%emt 0:00:37]} 10. Bb5 {[%emt 0:02:17]} a6 {[%emt 0:04:08]} 11. Ba4 {[%emt 0:00:50]} b5 {[%emt 0:02:53]} 12. Bb3 {[%emt 0:00:07]} Na5 {[%emt 0:02:16]} 13. Nd4 {[%emt 0:15:07]} Nxb3+ {[%emt 0:01:49]} 14. axb3 {[%emt 0:00:22]} Bg6 {[%emt 0:01:46]} 15. f4 {[%emt 0:02:38]} O-O {[%emt 0:01:03]} 16. h4 {[%emt 0:10:03]} a5 {[%emt 0:05:32]} 17. Rdf1 {[%emt 0:13:45]} c5 {[%emt 0:05:12]} 18. Nf3 {[%emt 0:07:59]} b4 {[%emt 0:14:30]} 19. Bxc5 {[%emt 0:21:39]} Qc7 {[%emt 0:03:34]} 20. Bd4 {[%emt 0:00:27]} a4 {[%emt 0:00:24]} 21. bxa4 {[%emt 0:02:41]} Rxa4 {[%emt 0:00:21]} 22. Kd1 {[%emt 0:02:58]} Re8 {[%emt 0:01:43]} 23. Qe3 {[%emt 0:03:53]} bxc3 {[%emt 0:03:27]} 24. Bxc3 {[%emt 0:02:09]} Re4 {[%emt 0:02:12]} 25. Qd2 {[%emt 0:01:36]} Ra8 {[%emt 0:00:36]} 26. Qd5 {[%emt 0:00:11]} Rea4 {[%emt 0:05:50]} 27. Nd4 {[%emt 0:04:37]} Bf6 {[%emt 0:02:11]} 28. f5 {[%emt 0:00:59]} Bh5+ {[%emt 0:00:28]} 29. Kd2 {[%emt 0:00:06]} Bxd4 {[%emt 0:01:36]} 30. Bxd4 {[%emt 0:00:06]} R8a5 {[%emt 0:01:17]} 31. Qe4 {[%emt 0:00:08]} Re5 {[%emt 0:00:27]} 32. Bb6 {[%emt 0:01:48]} Qxb6 {[%emt 0:01:07]} 0-1

[Event "Polish Youth 1st League 2022"]
[Site "Lublin"]
[Date "2022.06.29"]
[Round "5.3"]
[White "Ugorek, Kacper"]
[Black "Grot, Blazej"]
[Result "0-1"]
[ECO "B48"]
[WhiteElo "1696"]
[BlackElo "1819"]
[Annotator "NA RC"]
[PlyCount "84"]
[EventDate "2022.06.24"]
[EventType "team-tourn"]
[EventCountry "POL"]
[SourceTitle "playchess.com"]
[Source "ChessBase"]
[SourceQuality "1"]
[TimeControl "40/5400+30:1800+30"]

1. e4 {[%emt 0:00:02]} c5 {[%emt 0:00:06]} 2. Nf3 {[%emt 0:00:04]} e6 {[%emt 0:00:05]} 3. d4 {[%emt 0:00:04]} cxd4 {[%emt 0:00:04]} 4. Nxd4 {[%emt 0:00:04]} Nc6 {[%emt 0:00:05]} 5. Nc3 {[%emt 0:00:59]} Qc7 {[%emt 0:00:06]} 6. Be3 {[%emt 0:06:18]} a6 {[%emt 0:01:22]} 7. a3 {[%emt 0:05:41]} Nf6 {[%emt 0:02:04]} 8. Be2 {[%emt 0:04:46]} Be7 {[%emt 0:00:16]} 9. O-O {[%emt 0:00:15]} O-O {[%emt 0:00:05]} 10. f4 {[%emt 0:02:16]} d6 {[%emt 0:00:13]} 11. Nb3 {[%emt 0:08:25]} b5 {[%emt 0:01:48]} 12. g4 {[%emt 0:00:56]} Bb7 {[%emt 0:12:35]} 13. Qe1 {[%emt 0:03:17]} b4 {[%emt 0:01:28]} 14. axb4 {[%emt 0:18:55]} Nxb4 {[%emt 0:00:07]} 15. Qd2 {[%emt 0:01:58]} d5 {[%emt 0:01:24]} 16. e5 {[%emt 0:03:14]} Ne4 {[%emt 0:02:18]} 17. Nxe4 {[%emt 0:00:34]} dxe4 {[%emt 0:01:34]} 18. Nd4 {[%emt 0:06:05]} Rfd8 {[%emt 0:04:42]} 19. c3 {[%emt 0:04:18]} Nd5 {[%emt 0:01:40]} 20. Rfd1 {[%emt 0:03:19]} Bc5 {[%emt 0:02:00]} 21. Kf1 {[%emt 0:07:42]} Bxd4 {[%emt 0:17:07]} 22. cxd4 {[%emt 0:02:09]} Rac8 {[%emt 0:00:19]} 23. Rac1 {[%emt 0:01:46]} Qb6 {[%emt 0:00:41]} 24. Bg1 {[%emt 0:03:39]} Qb3 {[%emt 0:01:49]} 25. Rxc8 {[%emt 0:06:18]} Rxc8 {[%emt 0:03:21]} 26. Rc1 {[%emt 0:00:07]} Qh3+ {[%emt 0:02:17]} 27. Ke1 {[%emt 0:00:03]} Rf8 {[%emt 0:00:19]} 28. Rc3 {[%emt 0:06:04]} Nxc3 {[%emt 0:03:22]} 29. bxc3 {[%emt 0:00:09]} Rc8 {[%emt 0:05:00]} 30. c4 {[%emt 0:00:08]} Qb3 {[%emt 0:00:57]} 31. f5 $19 {[%emt 0:02:00]} a5 {[%emt 0:06:42]} 32. f6 {[%emt 0:01:30]} Qb4 {[%emt 0:00:08]} 33. Be3 {[%emt 0:01:30]} Ba6 {[%emt 0:06:24]} 34. Qxb4 {[%emt 0:02:14]} axb4 {[%emt 0:00:06]} 35. c5 {[%emt 0:00:29]} b3 {[%emt 0:02:20]} 36. Bc1 {[%emt 0:00:04]} Ra8 {[%emt 0:01:50]} 37. Bd1 {[%emt 0:00:48]} Bc4 {[%emt 0:00:53]} 38. Kd2 {[%emt 0:00:01]} e3+ {[%emt 0:01:17]} 39. Kxe3 {[%emt 0:00:21]} Ra2 {[%emt 0:00:15]} 40. c6 {[%emt 0:00:00]} b2 {[%emt 0:00:00]} 41. Bxb2 {[%emt 0:01:36]} Rxb2 {[%emt 0:00:11]} 42. c7 {[%emt 0:00:28]} Ba6 {[%emt 0:00:07]} 0-1

[Event "Polish Youth 1st League 2022"]
[Site "Lublin"]
[Date "2022.06.29"]
[Round "5.4"]
[White "Rozanski, Mateusz"]
[Black "Dobosiewicz, Dawid"]
[Result "0-1"]
[ECO "C77"]
[WhiteElo "1720"]
[BlackElo "1795"]
[Annotator "NA RC"]
[PlyCount "98"]
[EventDate "2022.06.24"]
[EventType "team-tourn"]
[EventCountry "POL"]
[SourceTitle "playchess.com"]
[Source "ChessBase"]
[SourceQuality "1"]
[TimeControl "40/5400+30:1800+30"]

1. e4 {[%emt 0:00:03]} e5 {[%emt 0:00:03]} 2. Nf3 {[%emt 0:00:51]} Nc6 {[%emt 0:00:04]} 3. Bb5 {[%emt 0:00:58]} a6 {[%emt 0:00:07]} 4. Ba4 {[%emt 0:00:50]} Nf6 {[%emt 0:00:06]} 5. d3 {[%emt 0:01:29]} b5 {[%emt 0:00:15]} 6. Bb3 {[%emt 0:00:21]} Be7 {[%emt 0:00:18]} 7. Bg5 {[%emt 0:01:41]} d6 {[%emt 0:03:47]} 8. Nc3 {[%emt 0:02:03]} Na5 {[%emt 0:02:06]} 9. h3 {[%emt 0:01:46]} Nxb3 10. axb3 {[%emt 0:00:26]} Bb7 {[%emt 0:02:19]} 11. O-O {[%emt 0:01:13]} c5 {[%emt 0:00:12]} 12. Ne2 {[%emt 0:00:59]} g6 {[%emt 0:05:34]} 13. Bh6 {[%emt 0:03:46]} Bf8 {[%emt 0:01:51]} 14. Bxf8 {[%emt 0:01:12]} Kxf8 {[%emt 0:00:19]} 15. Qd2 {[%emt 0:01:36]} Kg7 {[%emt 0:00:20]} 16. Ng3 {[%emt 0:00:35]} h6 {[%emt 0:01:09]} 17. Nh4 {[%emt 0:01:38]} Ng8 {[%emt 0:06:50]} 18. Nf3 {[%emt 0:18:24]} Ne7 {[%emt 0:03:57]} 19. b4 {[%emt 0:00:25]} Nc6 {[%emt 0:02:03]} 20. bxc5 {[%emt 0:00:16]} dxc5 {[%emt 0:00:04]} 21. Qc3 {[%emt 0:00:10]} Qd6 {[%emt 0:00:12]} 22. Nd2 {[%emt 0:05:02]} Nd4 {[%emt 0:00:59]} 23. Nb3 {[%emt 0:00:37]} Rac8 {[%emt 0:01:45]} 24. Na5 {[%emt 0:02:28]} Ba8 {[%emt 0:00:21]} 25. Qd2 {[%emt 0:00:42]} c4 {[%emt 0:00:44]} 26. Rfd1 {[%emt 0:05:12]} Rhd8 {[%emt 0:00:50]} 27. Kh1 {[%emt 0:03:22]} cxd3 {[%emt 0:00:26]} 28. Qxd3 {[%emt 0:01:15]} Qf6 {[%emt 0:00:43]} 29. c4 {[%emt 0:01:44]} h5 {[%emt 0:08:57]} 30. cxb5 {[%emt 0:01:27]} h4 {[%emt 0:01:55]} 31. Ne2 {[%emt 0:01:02]} Nc2 {[%emt 0:00:36]} 32. Qf3 {[%emt 0:02:08]} Nxa1 {[%emt 0:00:28]} 33. Rxa1 {[%emt 0:00:19]} Qxf3 {[%emt 0:00:13]} 34. gxf3 {[%emt 0:00:17]} axb5 {[%emt 0:00:08]} 35. Nc3 {[%emt 0:00:23]} b4 {[%emt 0:00:10]} 36. Nd1 {[%emt 0:00:25]} f5 {[%emt 0:00:25]} 37. Ne3 {[%emt 0:00:30]} fxe4 {[%emt 0:00:17]} 38. fxe4 {[%emt 0:00:11]} Bxe4+ {[%emt 0:00:04]} 39. Kg1 {[%emt 0:00:15]} Ra8 {[%emt 0:00:46]} 40. Ra4 {[%emt 0:00:00]} Bf3 {[%emt 0:00:00]} 41. b3 {[%emt 0:02:02]} Rdc8 {[%emt 0:01:03]} 42. Nec4 {[%emt 0:00:32]} Rd8 {[%emt 0:01:01]} 43. Ne3 {[%emt 0:00:14]} Rd3 {[%emt 0:00:36]} 44. Ra1 {[%emt 0:00:18]} Rd2 {[%emt 0:00:36]} 45. Kf1 {[%emt 0:00:31]} g5 {[%emt 0:01:48]} 46. Ke1 {[%emt 0:00:15]} Rd4 {[%emt 0:00:22]} 47. Nf5+ {[%emt 0:00:06]} Kf6 {[%emt 0:00:08]} 48. Nxd4 {[%emt 0:00:15]} exd4 {[%emt 0:00:02]} 49. Kd2 {[%emt 0:00:08]} g4 {[%emt 0:00:08]} 0-1

[Event "Polish Youth 1st League 2022"]
[Site "Lublin"]
[Date "2022.06.29"]
[Round "5.5"]
[White "Barwinska, Ewa"]
[Black "Krzyzosiak, Marta"]
[Result "1-0"]
[ECO "B40"]
[WhiteElo "1825"]
[BlackElo "1666"]
[Annotator "NA RC"]
[PlyCount "55"]
[EventDate "2022.06.24"]
[EventType "team-tourn"]
[EventCountry "POL"]
[SourceTitle "playchess.com"]
[Source "ChessBase"]
[SourceQuality "1"]
[TimeControl "40/5400+30:1800+30"]

1. e4 {[%emt 0:00:01]} c5 {[%emt 0:00:08]} 2. Nf3 {[%emt 0:00:08]} e6 {[%emt 0:00:08]} 3. d4 {[%emt 0:01:44]} cxd4 {[%emt 0:00:07]} 4. Nxd4 {[%emt 0:00:08]} d6 {[%emt 0:00:09]} 5. c4 {[%emt 0:01:13]} Nf6 {[%emt 0:00:13]} 6. Nc3 {[%emt 0:01:42]} Be7 {[%emt 0:01:12]} 7. Bd3 {[%emt 0:05:09]} Nc6 {[%emt 0:02:09]} 8. Bc2 {[%emt 0:05:17]} a6 {[%emt 0:04:21]} 9. Be3 {[%emt 0:04:56]} Bd7 {[%emt 0:06:09]} 10. Qe2 {[%emt 0:04:22]} Qc7 {[%emt 0:06:01]} 11. Nxc6 {[%emt 0:07:04]} Bxc6 {[%emt 0:05:48]} 12. O-O {[%emt 0:03:12]} O-O {[%emt 0:02:27]} 13. Bd3 {[%emt 0:04:24]} Rfd8 {[%emt 0:08:48]} 14. Rac1 {[%emt 0:03:49]} b6 {[%emt 0:04:48]} 15. Nd5 {[%emt 0:05:20]} Bxd5 {[%emt 0:05:46]} 16. cxd5 {[%emt 0:02:48]} Qb7 {[%emt 0:19:11]} 17. dxe6 {[%emt 0:02:15]} fxe6 {[%emt 0:00:22]} 18. f3 {[%emt 0:05:46]} b5 {[%emt 0:05:21]} 19. Rc2 {[%emt 0:05:27]} Rac8 {[%emt 0:04:03]} 20. Rfc1 {[%emt 0:01:04]} Rxc2 {[%emt 0:00:54]} 21. Qxc2 {[%emt 0:00:30]} Kf7 {[%emt 0:14:52]} 22. h3 {[%emt 0:06:51]} h6 $16 {[%emt 0:00:31]} 23. f4 {[%emt 0:02:10]} d5 {[%emt 0:02:13]} (23... Ra8 $142) 24. e5 {[%emt 0:01:32]} Ne4 {[%emt 0:03:24]} 25. Bd4 {[%emt 0:03:11]} Rd7 {[%emt 0:02:16]} 26. Qc6 {[%emt 0:02:13]} Nd2 {[%emt 0:01:13]} 27. f5 {[%emt 0:02:00]} exf5 {[%emt 0:00:37]} 28. e6+ {[%emt 0:00:09]} 1-0

[Event "Polish Youth 1st League 2022"]
[Site "Lublin"]
[Date "2022.06.29"]
[Round "5.6"]
[White "Wieczorek, Maja"]
[Black "Matuszewska, Kinga"]
[Result "1-0"]
[ECO "C42"]
[WhiteElo "1316"]
[BlackElo "1085"]
[Annotator "NA RC"]
[PlyCount "73"]
[EventDate "2022.06.24"]
[EventType "team-tourn"]
[EventCountry "POL"]
[SourceTitle "playchess.com"]
[Source "ChessBase"]
[SourceQuality "1"]
[TimeControl "40/5400+30:1800+30"]

1. e4 {[%emt 0:00:04]} e5 {[%emt 0:00:05]} 2. Nf3 {[%emt 0:00:05]} Nf6 {[%emt 0:00:04]} 3. Nxe5 {[%emt 0:00:12]} d6 {[%emt 0:00:07]} 4. Nf3 {[%emt 0:00:06]} Nxe4 {[%emt 0:00:11]} 5. Nc3 {[%emt 0:00:13]} Nxc3 {[%emt 0:00:13]} 6. dxc3 {[%emt 0:00:10]} Nc6 {[%emt 0:01:20]} 7. Bd3 {[%emt 0:01:11]} Be7 {[%emt 0:00:47]} 8. Be3 {[%emt 0:01:45]} Be6 {[%emt 0:00:47]} 9. Qd2 {[%emt 0:00:34]} Qd7 {[%emt 0:00:18]} 10. h3 {[%emt 0:04:44]} Ne5 {[%emt 0:07:23]} 11. Nxe5 {[%emt 0:02:15]} dxe5 {[%emt 0:00:10]} 12. Qe2 {[%emt 0:05:07]} c6 {[%emt 0:05:45]} 13. Rd1 {[%emt 0:04:36]} Qc7 {[%emt 0:11:13]} 14. a3 {[%emt 0:01:14]} f5 {[%emt 0:09:23]} 15. O-O {[%emt 0:16:13]} O-O {[%emt 0:06:06]} 16. f4 {[%emt 0:03:01]} e4 {[%emt 0:08:03]} 17. Bc4 {[%emt 0:00:25]} Bxc4 {[%emt 0:01:45]} 18. Qxc4+ {[%emt 0:00:09]} Kh8 {[%emt 0:00:27]} 19. Bd4 {[%emt 0:01:28]} Bd6 {[%emt 0:06:35]} 20. Be3 {[%emt 0:01:11]} b6 {[%emt 0:02:20]} 21. b4 {[%emt 0:02:39]} Rac8 {[%emt 0:03:44]} 22. Rd2 {[%emt 0:08:49]} c5 {[%emt 0:04:25]} 23. Qe2 {[%emt 0:03:51]} g6 {[%emt 0:01:57]} 24. Qf2 {[%emt 0:01:14]} Be7 {[%emt 0:11:51]} 25. Rfd1 {[%emt 0:01:13]} Bf6 {[%emt 0:05:48]} 26. Rd7 {[%emt 0:05:26]} Qc6 {[%emt 0:00:49]} 27. R1d6 {[%emt 0:05:25]} Qb5 {[%emt 0:00:29]} 28. Qd2 {[%emt 0:05:58]} a5 {[%emt 0:04:27]} 29. Qd5 {[%emt 0:06:35]} Bxc3 {[%emt 0:05:06]} 30. Qe6 {[%emt 0:02:34]} Qe2 {[%emt 0:02:20]} 31. Rxh7+ {[%emt 0:01:57]} Kxh7 {[%emt 0:00:14]} 32. Qxg6+ {[%emt 0:00:03]} Kh8 {[%emt 0:00:16]} 33. Qh6+ {[%emt 0:00:37]} Kg8 {[%emt 0:00:23]} 34. Rg6+ {[%emt 0:00:13]} Kf7 {[%emt 0:00:29]} 35. Qh7+ {[%emt 0:00:15]} Ke8 {[%emt 0:00:18]} 36. Re6+ {[%emt 0:00:09]} Kd8 {[%emt 0:00:20]} 37. Qe7# {[%emt 0:00:03]} 1-0